bitfinex/quotes_ETHUSD_20250806
["timestamp","ask_amount","ask_price","bid_price","bid_amount"]
[1754492327857,1e-08,3639.9,3639.8,8.1537037]
[1754492328058,1e-08,3639.9,3639.8,8.76802384]
[1754492328259,1e-08,3639.9,3639.8,8.30252384]
[1754492328717,1e-08,3639.9,3639.8,1.09012014]
[1754492328876,1e-08,3639.9,3639.4,0.4645]
[1754492329197,1e-08,3639.9,3639.4,2.74769821]
[1754492329394,1e-08,3639.9,3639.0,0.9403]
[1754492329828,0.4306,3639.8,3639.1,4.463]
[1754492330026,3.19874331,3639.7,3639.1,4.463]
[1754492330175,0.4512,3639.6,3639.1,4.463]
[1754492330376,0.45120001,3639.9,3639.1,4.463]
[1754492330573,0.45120001,3639.9,3638.5,0.9403]
[1754492330574,3.1985924,3639.9,3639.2,4.462]
[1754492330777,0.45120001,3639.9,3639.2,4.465]
[1754492330988,1e-08,3639.9,3639.5,0.1376]
[1754492331217,1e-08,3639.9,3639.8,0.1376]
[1754492331527,0.4815,3639.8,3639.1,4.464]
[1754492331677,0.4815,3639.8,3639.1,4.6016]
[1754492331678,2.88510492,3639.7,3639.1,4.6016]
[1754492331877,0.1376,3639.7,3639.1,4.6016]
[1754492332072,0.9495,3639.8,3639.5,0.1376]
[1754492332073,0.4815,3639.8,3639.5,0.1376]
[1754492332292,2.74755467,3639.6,3639.1,4.467]
[1754492332516,3.69716104,3639.5,3639.0,0.002]
[1754492332826,0.9495,3639.5,3639.1,0.1376]
[1754492333122,0.9495,3639.4,3639.1,0.1376]
[1754492333330,0.468,3639.4,3639.1,0.1376]
[1754492333477,0.4815,3639.4,3639.1,0.1376]
[1754492333987,0.48150001,3639.9,3639.1,0.73855874]
[1754492334187,0.48150001,3639.9,3639.3,0.1376]
[1754492334490,0.48150001,3639.9,3639.5,0.1376]
[1754492334696,0.4815,3639.8,3639.5,0.1376]
[1754492334877,0.9495,3639.8,3639.5,0.1376]
[1754492335085,0.9495,3639.7,3639.0,0.002]
[1754492335282,3.83460197,3639.7,3639.2,0.1376]
[1754492335521,0.9495,3639.6,3639.2,0.1376]
[1754492335890,0.4815,3639.6,3639.2,0.1376]
[1754492336119,0.4815,3639.5,3639.2,0.1376]
[1754492336320,0.9495,3639.4,3639.2,0.1376]
[1754492336531,0.4815,3639.3,3639.2,0.1376]
[1754492336935,0.1376,3639.7,3639.0,0.002]
[1754492337148,0.6191,3639.7,3639.1,0.1376]
[1754492337749,0.6191,3639.7,3639.2,2.74785578]
[1754492337908,0.4855,3640.2,3639.2,0.4498]
[1754492338116,0.1376,3640.0,3639.5,0.1376]
[1754492338648,0.4855,3640.2,3639.8,0.1376]
[1754492339166,0.94950001,3639.9,3639.0,0.002]
[1754492339321,1e-08,3639.9,3639.7,0.1376]
[1754492339509,0.4815,3639.8,3639.7,0.1376]
[1754492339720,1e-08,3639.9,3639.7,0.1376]
[1754492339923,1e-08,3639.9,3639.6,0.1376]
[1754492340133,1e-08,3639.9,3639.0,0.4518]
[1754492340134,1e-08,3639.9,3639.1,4.20055726]
[1754492340354,0.4815,3639.8,3639.1,0.53724]
[1754492340533,0.4815,3639.8,3639.5,0.1376]
[1754492340746,0.4815,3639.8,3639.1,0.53724]
[1754492340747,1e-08,3639.9,3639.1,1.48011932]
[1754492340959,1e-08,3639.9,3639.8,2.7474037]
[1754492341161,1e-08,3639.9,3639.2,1.50931193]
[1754492341532,1e-08,3639.9,3639.8,2.7474037]
[1754492341922,1e-08,3639.9,3639.8,3.6628037]
[1754492342881,1e-08,3639.9,3639.8,7.2044037]
[1754492343031,1e-08,3639.9,3639.8,2.7474037]
[1754492343236,1e-08,3639.9,3639.3,0.4498]
[1754492343439,1e-08,3639.9,3639.8,2.7474037]
[1754492345133,1e-08,3639.9,3639.7,2.74745033]
[1754492345342,1e-08,3639.9,3639.4,0.15093119]
[1754492345545,1e-08,3639.9,3639.8,2.7474037]
[1754492345770,1e-08,3639.9,3639.6,4.457]
[1754492346070,0.4815,3639.8,3639.7,2.74747918]
[1754492346246,1e-08,3639.9,3639.8,2.7474037]
[1754492346643,1e-08,3639.9,3639.4,4.9048]
[1754492346845,1e-08,3639.9,3639.8,2.7474037]
[1754492347365,1e-08,3639.9,3639.6,2.74751024]
[1754492347527,1e-08,3639.9,3639.5,4.453]
[1754492347731,1e-08,3639.9,3639.8,2.7474037]
[1754492347933,1e-08,3639.9,3639.8,2.7494037]
[1754492348135,1e-08,3639.9,3639.8,4.77880692]
[1754492348371,1e-08,3639.9,3639.8,4.28573289]
[1754492348870,1e-08,3639.9,3639.8,3.83593289]
[1754492349075,1e-08,3639.9,3639.8,1.08852919]
[1754492349368,1e-08,3639.9,3639.8,2.7494037]
[1754492349580,1e-08,3639.9,3639.8,3.1992037]
[1754492349776,1e-08,3639.9,3639.8,3.6648037]
[1754492350133,1e-08,3639.9,3639.8,2.7494037]
[1754492350741,1e-08,3639.9,3639.8,2.8870037]
[1754492351136,1e-08,3639.9,3639.8,0.1396]
[1754492351365,1e-08,3639.9,3639.8,2.8870037]
[1754492351570,1e-08,3639.9,3639.8,7.90045287]
[1754492351772,1e-08,3639.9,3639.8,3.45045287]
[1754492352037,0.94950001,3639.9,3639.8,0.002]
[1754492352274,3.69682823,3639.9,3639.8,0.002]
[1754492352636,2.74763016,3639.5,3639.4,0.002]
[1754492353081,3.69713016,3639.5,3639.4,0.002]
[1754492353987,0.9495,3639.5,3639.4,0.002]
[1754492354352,1e-08,3639.9,3639.4,0.002]
[1754492354353,0.48150001,3639.9,3639.4,0.002]
[1754492354537,1e-08,3639.9,3639.5,2.74756147]
[1754492354741,1e-08,3639.9,3639.6,0.27495615]
[1754492355052,0.9495,3639.8,3639.5,2.74762557]
[1754492355246,0.9495,3639.8,3639.4,0.002]
[1754492355475,0.4815,3639.8,3639.4,0.002]
[1754492355647,1e-08,3639.9,3639.4,0.27698529]
[1754492355851,1e-08,3639.9,3639.8,2.7474037]
[1754492356562,1e-08,3639.9,3639.8,3.6628037]
[1754492356767,1e-08,3639.9,3639.8,2.7474037]
[1754492357947,1e-08,3639.9,3639.6,4.449]
[1754492358200,1e-08,3639.9,3639.8,2.7474037]
[1754492358778,1e-08,3639.9,3639.8,2.74301146]
[1754492359792,1e-08,3639.9,3639.8,3.7363616]
[1754492360364,1e-08,3639.9,3639.7,2.74747057]
[1754492360693,1e-08,3639.9,3639.7,2.74741432]
[1754492360907,0.9307,3639.8,3639.4,0.002]
[1754492361096,1e-08,3639.9,3639.4,0.002]
[1754492361097,0.9269,3639.7,3639.4,0.002]
[1754492361247,1e-08,3639.9,3639.4,0.002]
[1754492361592,0.9269,3639.6,3639.4,0.002]
[1754492361798,1e-08,3639.9,3639.4,0.002]
[1754492361799,0.9269,3639.5,3639.4,0.002]
[1754492362000,1.0645,3639.5,3639.4,0.002]
[1754492362549,0.13760001,3639.9,3639.4,0.002]
[1754492362753,1e-08,3639.9,3639.8,2.7474037]
[1754492363002,1e-08,3639.9,3639.4,0.1396]
[1754492363003,1e-08,3639.9,3639.6,0.1376]
[1754492363304,1e-08,3639.9,3639.8,2.7474037]
[1754492363892,1e-08,3639.9,3639.6,0.1376]
[1754492364194,0.47770001,3639.9,3639.6,0.1376]
[1754492364363,0.4777,3639.8,3639.7,2.74744637]
[1754492364983,1e-08,3639.9,3639.7,2.74745023]
[1754492365194,1e-08,3639.9,3639.5,2.88521532]
[1754492365489,1e-08,3639.9,3639.8,2.7474037]
[1754492366048,0.47770001,3639.9,3639.7,2.74745078]
[1754492366292,0.4777,3639.8,3639.7,2.74745078]
[1754492366665,1e-08,3639.9,3639.5,0.1376]
[1754492366873,0.4777,3639.8,3639.5,2.88518601]
[1754492367058,1e-08,3639.9,3639.5,2.88518672]
[1754492367059,0.9269,3639.7,3639.5,2.88518672]
[1754492367414,1e-08,3639.9,3639.5,2.74763016]
[1754492367415,0.9269,3639.6,3639.5,2.74763016]
[1754492367564,1e-08,3639.9,3639.7,2.74747918]
[1754492367765,1e-08,3639.9,3639.8,2.7474037]
[1754492370778,0.92690001,3639.9,3639.4,0.002]
[1754492370977,0.9269,3639.8,3639.4,0.002]
[1754492371185,1e-08,3639.9,3639.4,0.002]
[1754492371391,1e-08,3639.9,3639.5,2.74763005]
[1754492371589,1e-08,3639.9,3639.8,2.7474037]
[1754492371761,1e-08,3639.9,3639.7,2.74745852]
[1754492371964,1e-08,3639.9,3639.8,2.7474037]
[1754492373062,1e-08,3639.9,3639.8,4.65359295]
[1754492373462,1e-08,3639.9,3639.8,4.18149295]
[1754492375410,1e-08,3639.9,3639.8,4.65359295]
[1754492375999,1e-08,3639.9,3639.8,9.08559295]
[1754492377596,1e-08,3639.9,3639.8,9.22319295]
[1754492379510,3.01834149,3640.5,3640.4,2.74695088]
[1754492379757,3.01834149,3640.5,3640.4,7.58524597]
[1754492379892,3.94524149,3640.5,3640.4,0.1376]
[1754492380091,3.94524149,3640.5,3638.9,0.002]
[1754492380324,3.94524149,3640.5,3639.5,4.464]
[1754492380325,0.9269,3640.4,3639.5,4.464]
[1754492380527,0.9269,3640.3,3639.5,4.464]
[1754492380731,0.4492,3640.3,3639.8,2.74733198]
[1754492380932,0.4492,3640.3,3640.0,2.74720206]
[1754492380933,0.4777,3640.2,3640.0,2.74720206]
[1754492381136,3.01834149,3640.5,3640.1,4.462]
[1754492381695,3.01834149,3640.5,3640.4,2.74695088]
[1754492381995,3.01834149,3640.5,3640.4,7.21095088]
[1754492382135,3.49604149,3640.5,3640.4,7.21095088]
[1754492382340,3.49604149,3640.5,3640.4,7.20995088]
[1754492382533,3.94524149,3640.5,3640.4,4.463]
[1754492382776,3.49604149,3640.5,3640.4,7.20995088]
[1754492383834,3.01834149,3640.5,3640.4,2.74695088]
[1754492384041,3.01834149,3640.5,3640.4,7.80039948]
[1754492384353,3.01834149,3640.5,3640.4,7.20695088]
[1754492384548,3.01834149,3640.5,3640.4,7.21695088]
[1754492384750,3.01834149,3640.5,3640.4,2.74695088]
[1754492384972,3.01834149,3640.5,3640.4,4.47]
[1754492385171,3.94524149,3640.5,3639.3,0.4721]
[1754492385349,0.4777,3640.4,3639.5,2.74759425]
[1754492385547,0.4777,3640.4,3639.0,7.0751]
[1754492385548,0.4492,3640.3,3639.9,2.74726185]
[1754492385759,0.9269,3640.2,3639.9,4.47]
[1754492385963,0.9269,3640.1,3639.8,4.47]
[1754492386179,3.01834149,3640.5,3639.8,4.47]
[1754492386378,3.01834149,3640.5,3639.8,5.19175382]
[1754492386531,3.01834149,3640.5,3640.4,2.74695088]
[1754492389677,3.01834149,3640.5,3640.4,7.21295088]
[1754492390040,3.01834149,3640.5,3640.4,7.35055088]
[1754492390453,3.01834149,3640.5,3640.4,8.26315088]
[1754492390652,3.01834149,3640.5,3640.4,9.36416662]
[1754492391475,2.68821039,3640.5,3640.4,9.36416662]
[1754492392075,2.68821039,3640.5,3640.4,4.89816662]
[1754492392374,3.16101039,3640.5,3640.4,2.74695088]
[1754492392548,2.68821039,3640.5,3640.4,7.20995088]
[1754492392968,3.16101039,3640.5,3640.4,7.20995088]
[1754492393274,3.16101039,3640.5,3640.4,2.74695088]
[1754492393580,2.68821039,3640.5,3640.4,7.21995088]
[1754492393887,0.04,3640.9,3640.8,2.74664908]
[1754492394038,0.04,3640.9,3640.8,7.21864908]
[1754492394454,0.04,3640.9,3640.8,8.16664908]
[1754492394674,0.04,3640.9,3640.8,2.74664908]
[1754492394972,0.04,3640.9,3640.8,3.39078764]
[1754492395272,0.04,3640.9,3640.8,7.86878764]
[1754492395938,0.04,3640.9,3640.8,8.32268764]
[1754492396565,0.04,3640.9,3640.8,7.86678764]
[1754492397776,0.04,3640.9,3640.8,3.39078764]
[1754492398081,0.04,3640.9,3640.8,7.86478764]
[1754492398841,0.04,3640.9,3640.8,3.39078764]
[1754492399079,0.04,3640.9,3640.8,7.86478764]
[1754492399380,0.001,3641.3,3641.2,2.74634735]
[1754492399587,0.001,3641.3,3641.2,7.21734735]
[1754492399879,0.001,3641.3,3641.2,8.16534735]
[1754492400293,0.04,3641.9,3641.8,2.74589488]
[1754492400599,0.04,3641.9,3641.8,7.21489488]
[1754492400765,1e-08,3642.1,3642.0,2.74574409]
[1754492400958,1e-08,3642.1,3642.0,7.24120153]
[1754492401155,1e-08,3642.1,3642.0,3.69374409]
[1754492401360,1e-08,3642.1,3642.0,7.21474409]
[1754492401554,0.47280001,3642.1,3642.0,2.74574409]
[1754492401793,0.47280001,3642.1,3642.0,7.21774409]
[1754492401993,1e-08,3642.1,3642.0,3.84199137]
[1754492402296,1e-08,3642.1,3642.0,8.31299137]
[1754492402450,1e-08,3642.1,3642.0,8.31399137]
[1754492402889,0.47280001,3642.1,3642.0,2.88334409]
[1754492403076,1e-08,3642.1,3642.0,7.35534409]
[1754492403821,1e-08,3642.1,3642.0,7.35334409]
[1754492403972,1e-08,3642.1,3642.0,7.80724409]
[1754492404170,1e-08,3642.1,3642.0,8.30134409]
[1754492404370,1e-08,3642.1,3642.0,9.40606799]
[1754492404892,0.00088042,3642.6,3642.0,9.40606799]
[1754492404893,0.00088042,3642.6,3642.5,2.74536719]
[1754492405098,0.00088042,3642.6,3642.5,7.21536719]
[1754492405317,0.04,3642.9,3642.6,2.74529182]
[1754492405516,0.04,3642.9,3642.8,2.8827411]
[1754492405684,0.04,3642.9,3642.8,4.19727774]
[1754492405873,0.004,3643.2,3643.1,2.74491504]
[1754492406224,0.465,3644.7,3643.4,2.74468902]
[1754492406367,0.004,3644.8,3644.7,2.74371004]
[1754492406565,0.004,3644.8,3644.7,7.22071004]
[1754492406788,0.004,3644.8,3644.7,8.62834055]
[1754492406988,0.004,3644.8,3644.7,5.88463051]
[1754492407205,0.004,3644.8,3644.7,2.88051004]
[1754492407507,0.4768,3644.8,3644.7,0.1368]
[1754492407707,3.68543476,3644.8,3644.7,0.1368]
[1754492407909,3.68543476,3644.8,3644.7,4.477]
[1754492408223,0.004,3644.8,3644.7,4.477]
[1754492408373,0.004,3644.8,3644.7,7.95647]
[1754492408577,1e-08,3644.8,3644.7,8.90447]
[1754492408767,1e-08,3644.8,3644.7,9.04127]
[1754492408968,1e-08,3644.8,3644.7,1.82055996]
[1754492409283,1e-08,3644.8,3644.7,4.6228]
[1754492409622,1e-08,3644.8,3644.7,0.1368]
[1754492409919,0.93780001,3644.8,3644.7,0.1368]
[1754492410071,0.93780001,3644.8,3643.7,2.74443646]
[1754492410072,3.68143477,3644.8,3643.1,0.4539]
[1754492410269,3.68143477,3644.8,3642.2,1.27861]
[1754492410270,2.74522476,3642.7,3642.2,1.27861]
[1754492410506,1.20237175,3645.5,3642.2,0.4539]
[1754492410706,0.6104,3643.7,3642.3,4.503]
[1754492410912,0.4728,3643.7,3643.3,0.1376]
[1754492411110,0.9378,3643.6,3642.5,2.77279856]
[1754492411367,0.9378,3643.6,3642.6,4.504]
[1754492411518,3.21704431,3644.0,3642.7,5.12482753]
[1754492411813,1e-08,3644.8,3642.8,4.504]
[1754492412045,0.4728,3644.7,3642.9,0.97545065]
[1754492412171,1e-08,3644.8,3643.0,0.948]
[1754492412372,1e-08,3644.8,3643.1,15.47555716]
[1754492412675,1e-08,3644.8,3643.2,7.544]
[1754492413011,1e-08,3644.8,3643.3,4.503]
[1754492413012,0.4728,3644.7,3643.3,4.503]
[1754492413212,0.4728,3644.7,3643.4,0.948]
[1754492413399,0.4728,3644.7,3643.5,4.502]
[1754492413400,0.465,3644.6,3643.5,4.502]
[1754492413575,0.4728,3644.5,3643.6,5.046]
[1754492413778,1e-08,3644.8,3644.7,2.74371004]
[1754492414093,1e-08,3644.8,3644.7,7.24471004]
[1754492414416,1e-08,3644.8,3644.7,8.19271004]
[1754492415123,1e-08,3644.9,3644.8,2.74363476]
[1754492415332,1e-08,3644.9,3644.8,5.8247791]
[1754492416523,0.00400001,3644.9,3644.8,4.8767791]
[1754492416722,0.00400001,3644.9,3644.8,7.08204434]
[1754492416886,0.00400001,3644.9,3644.8,8.18663476]
[1754492417084,0.00400001,3644.9,3644.4,2.7439359]
[1754492417427,0.00400001,3644.9,3644.7,0.4539]
[1754492417644,0.00400001,3644.9,3644.8,2.7710711]
[1754492417791,0.00400001,3644.9,3644.8,3.7190711]
[1754492417983,0.00400001,3644.9,3644.8,4.81495052]
[1754492418236,0.00400001,3644.9,3644.8,1.54977942]
[1754492418407,0.00400001,3644.9,3644.8,4.9469]
[1754492418607,0.00400001,3644.9,3644.8,7.69053476]
[1754492418903,0.00400001,3644.9,3644.8,0.948]
[1754492419115,0.00400001,3644.9,3644.1,0.4941]
[1754492419431,0.00400001,3644.9,3644.8,3.23773476]
[1754492419585,0.00400001,3644.9,3644.8,8.80821678]
[1754492419791,0.00400001,3644.9,3644.8,8.78078044]
[1754492420002,0.00400001,3644.9,3644.8,5.08814568]
[1754492420202,0.00400001,3644.9,3644.8,0.59814568]
[1754492420403,0.00400001,3644.9,3644.8,4.488]
[1754492421009,0.00400001,3644.9,3644.8,8.2845711]
[1754492421211,0.00400001,3644.9,3644.8,8.25713476]
[1754492421389,0.00400001,3644.9,3644.8,8.25813476]
[1754492421892,1e-08,3644.9,3644.8,8.25813476]
[1754492422088,1e-08,3644.9,3644.8,9.35831915]
[1754492422331,1e-08,3644.9,3644.8,8.46861915]
[1754492422737,1e-08,3644.9,3644.8,7.36843476]
[1754492423299,1e-08,3644.9,3644.8,7.36743476]
[1754492423759,0.45500001,3644.9,3644.8,0.1368]
[1754492423956,3.6908595,3644.9,3644.8,0.1368]
[1754492424246,1e-08,3644.9,3644.8,0.1368]
[1754492424733,1e-08,3644.9,3644.8,3.61958869]
[1754492425031,1e-08,3644.9,3644.8,4.6488]
[1754492425231,1e-08,3644.9,3644.8,7.39243476]
[1754492425435,1e-08,3644.9,3644.8,8.28113476]
[1754492426025,1e-08,3644.9,3644.8,7.82733476]
[1754492426228,1e-08,3644.9,3644.8,3.93754016]
[1754492426539,1e-08,3644.9,3644.8,0.1368]
[1754492426699,0.94730001,3644.9,3644.8,4.6448]
[1754492427100,0.94730001,3644.9,3644.8,0.1368]
[1754492427357,3.6908595,3644.9,3644.8,0.1368]
[1754492427635,4.08410001,3644.9,3643.3,4.509]
[1754492427840,0.49230001,3644.9,3644.8,0.1368]
[1754492428026,2.74360973,3644.9,3644.8,0.1368]
[1754492428226,2.74360973,3644.9,3644.1,4.525]
[1754492428227,0.94730001,3644.9,3644.1,4.525]
[1754492428425,0.94730001,3644.9,3643.1,0.9287]
[1754492428426,0.9473,3644.8,3643.1,2.78489965]
[1754492428626,2.74421238,3644.1,3643.8,0.1376]
[1754492428842,0.9473,3644.0,3643.8,0.1376]
[1754492429136,0.9473,3644.0,3643.1,0.04]
[1754492429137,0.4923,3643.9,3643.1,0.06744915]
[1754492429347,0.4923,3643.9,3643.8,2.88198772]
[1754492429540,0.455,3644.4,3643.8,0.70024958]
[1754492429714,0.4923,3644.4,3644.3,0.1376]
[1754492429913,0.9473,3644.4,3644.3,0.1376]
[1754492430338,3.6912359,3644.4,3643.1,0.04]
[1754492430538,0.4923,3644.3,3644.1,0.1376]
[1754492430722,3.69134147,3644.3,3644.1,0.1376]
[1754492430922,2.74426311,3644.0,3643.8,0.21083493]
[1754492431228,2.74394359,3644.4,3644.0,0.1376]
[1754492431567,0.1368,3644.6,3643.2,4.561]
[1754492431568,2.74391785,3644.5,3643.9,0.1376]
[1754492431751,0.9473,3644.3,3643.9,0.1376]
[1754492431950,2.74418279,3644.1,3643.9,0.1376]
[1754492432150,0.9473,3644.0,3643.9,0.1376]
[1754492432459,3.6915371,3644.0,3643.3,0.4601]
[1754492432668,0.9473,3644.0,3643.8,0.1376]
[1754492432849,2.88161573,3644.3,3643.8,0.1376]
[1754492433048,0.9473,3643.9,3643.8,0.1376]
[1754492433359,0.9473,3643.9,3643.8,0.34651711]
[1754492433563,0.9473,3644.4,3643.8,0.44670475]
[1754492433738,0.9473,3644.4,3643.7,2.74438863]
[1754492434074,0.9473,3644.4,3644.1,0.1376]
[1754492434267,0.9473,3644.8,3644.3,0.1376]
[1754492434424,0.4923,3644.7,3644.6,0.1368]
[1754492434629,0.9473,3644.7,3644.6,0.1368]
[1754492435031,0.9473,3644.7,3644.0,2.744226]
[1754492435232,0.4923,3644.6,3644.1,0.1376]
[1754492435466,2.74398941,3644.4,3644.1,0.1376]
[1754492435656,0.9473,3644.3,3644.1,0.1376]
[1754492436030,2.74379131,3644.6,3644.1,0.1376]
[1754492436031,0.9473,3644.2,3644.1,0.1376]
[1754492436936,0.9473,3644.2,3643.7,2.74646141]
[1754492437259,0.4923,3644.1,3644.0,0.1376]
[1754492437677,0.9473,3644.1,3644.0,0.1376]
[1754492438472,0.9473,3644.1,3643.7,0.002]
[1754492438672,0.9473,3644.0,3643.8,0.1376]
[1754492439075,0.4923,3643.9,3643.8,0.1376]
[1754492439279,0.9473,3643.9,3643.8,0.1376]
[1754492439574,0.4923,3643.9,3643.8,0.1376]
[1754492440878,2.74438772,3643.8,3643.7,0.002]
[1754492441176,0.9473,3643.8,3643.7,0.002]
[1754492441418,0.4923,3643.8,3643.7,0.002]
[1754492441747,0.455,3644.3,3643.7,0.002]
[1754492441748,0.9473,3644.3,3643.7,0.002]
[1754492441938,3.19904933,3644.3,3643.7,0.002]
[1754492442144,0.4923,3644.2,3643.7,0.002]
[1754492442684,0.4923,3644.2,3644.0,0.1376]
[1754492443075,0.4923,3644.2,3643.7,2.74640229]
[1754492443076,0.455,3644.8,3644.1,0.16504161]
[1754492443247,0.1368,3644.6,3644.1,0.1376]
[1754492443446,0.455,3644.5,3644.0,0.1376]
[1754492443645,0.1368,3644.6,3644.0,0.1376]
[1754492443646,0.9473,3644.4,3644.0,0.1376]
[1754492443851,0.9473,3644.3,3644.0,0.1376]
[1754492444092,0.9473,3644.2,3644.0,0.1376]
[1754492444277,0.455,3644.2,3644.0,0.1376]
[1754492444453,0.9473,3644.1,3643.7,0.002]
[1754492444784,0.9473,3644.1,3643.8,0.1376]
[1754492444983,0.9473,3644.0,3643.8,0.1376]
[1754492445370,3.69166261,3643.9,3643.7,0.002]
[1754492445562,0.9473,3643.9,3643.7,0.002]
[1754492445766,0.4923,3643.8,3643.7,0.002]
[1754492446253,0.1376,3644.1,3643.7,0.002]
[1754492446449,0.4923,3644.2,3643.7,0.002]
[1754492446655,0.4923,3644.2,3643.8,0.1376]
[1754492446959,0.9473,3644.1,3643.8,0.1376]
[1754492447148,0.4923,3644.0,3643.8,0.1376]
[1754492447356,0.4923,3644.0,3643.8,2.88198173]
[1754492447675,0.4923,3644.0,3643.8,2.88197814]
[1754492447876,0.4923,3643.9,3643.8,0.1376]
[1754492448088,0.4923,3643.9,3643.8,2.88198772]
[1754492448410,0.4923,3644.4,3643.8,0.70045666]
[1754492448556,1.0849,3644.3,3643.8,0.1376]
[1754492448754,0.9473,3644.2,3643.8,0.1376]
[1754492449092,2.74416674,3644.1,3643.8,0.1376]
[1754492449257,0.9473,3644.1,3643.8,0.1376]
[1754492449462,0.4923,3644.0,3643.8,0.1376]
[1754492449658,0.9473,3644.0,3643.8,0.1376]
[1754492449849,0.4923,3643.9,3643.7,0.002]
[1754492450494,0.4923,3643.9,3643.7,2.74642892]
[1754492450705,0.4923,3643.9,3643.7,0.002]
[1754492451407,3.63498772,3643.8,3643.7,0.002]
[1754492451871,0.4583,3643.8,3643.7,0.002]
[1754492452199,3.63498772,3643.8,3643.7,0.002]
[1754492453499,6.63498772,3643.8,3643.7,0.002]
[1754492453908,41.15598772,3643.8,3643.7,0.002]
[1754492454076,41.70598772,3643.8,3643.7,1e-08]
[1754492454277,41.70598772,3643.8,3643.3,0.002]
[1754492454518,6.43228902,3643.4,3643.3,1e-08]
[1754492454743,6.2948397,3643.2,3643.1,1e-08]
[1754492454876,40.2658397,3643.2,3643.1,1e-08]
[1754492455080,41.2940397,3643.2,3643.1,1e-08]
[1754492455386,11.2940397,3643.2,3643.1,1e-08]
[1754492455587,41.8440397,3643.2,3643.1,1e-08]
[1754492455792,41.2940397,3643.2,3643.1,1e-08]
[1754492456515,11.2930397,3643.2,3643.1,1e-08]
[1754492456701,11.2910397,3643.2,3643.1,1e-08]
[1754492457012,41.2910397,3643.2,3643.1,1e-08]
[1754492457835,11.2910397,3643.2,3643.1,1e-08]
[1754492457995,11.8410397,3643.2,3643.1,1e-08]
[1754492458531,41.8410397,3643.2,3643.1,1e-08]
[1754492459039,0.55,3642.9,3642.7,1e-08]
[1754492459324,3.29499039,3643.0,3642.7,1e-08]
[1754492459325,40.9477411,3642.8,3642.7,1e-08]
[1754492459529,41.8383411,3642.8,3642.7,1e-08]
[1754492460832,41.2843411,3642.8,3642.7,1e-08]
[1754492461182,41.8343411,3642.8,3642.7,1e-08]
[1754492461387,2.74559332,3642.2,3642.1,0.04]
[1754492461640,40.94719332,3642.2,3642.1,0.04]
[1754492461931,11.28779332,3642.2,3642.1,0.04]
[1754492462138,11.28779332,3642.2,3640.7,0.1376]
[1754492462139,2.74634735,3641.2,3640.7,0.1376]
[1754492462285,7.25934735,3641.2,3640.7,0.1376]
[1754492462490,7.25934735,3641.2,3640.2,0.9186]
[1754492462721,4.514,3641.5,3641.1,0.5018]
[1754492462899,4.514,3641.5,3641.2,0.9186]
[1754492463120,0.1376,3641.4,3641.2,0.4618]
[1754492463442,0.1376,3641.4,3641.1,0.04]
[1754492463648,0.1376,3641.2,3641.1,0.04]
[1754492463851,8.29054735,3641.2,3641.1,0.04]
[1754492464150,4.6536,3641.2,3641.1,0.04]
[1754492464992,0.1376,3641.4,3641.2,0.9186]
[1754492465188,4.513,3641.5,3641.2,0.9186]
[1754492465421,2.74627193,3641.3,3641.2,0.4618]
[1754492465739,2.74630003,3641.3,3641.1,0.04]
[1754492465905,2.74628174,3641.3,3641.1,0.04]
[1754492466106,4.513,3641.5,3641.1,0.04]
[1754492466341,2.74634735,3641.2,3641.1,0.04]
[1754492466636,7.25734735,3641.2,3641.1,0.04]
[1754492467129,41.14794735,3641.2,3641.1,0.04]
[1754492467451,5.74687542,3640.5,3640.4,0.002]
[1754492467594,4.509,3640.5,3640.4,0.002]
[1754492468605,7.25587542,3640.5,3640.4,0.002]
[1754492468837,4.509,3640.5,3640.4,0.002]
[1754492469038,7.25587542,3640.5,3640.4,0.002]
[1754492469242,4.508,3640.7,3640.4,0.002]
[1754492469545,7.25473286,3640.7,3640.4,0.002]
[1754492469698,3.20512342,3640.6,3640.4,0.002]
[1754492469903,4.508,3640.7,3640.4,0.002]
[1754492470339,2.74687542,3640.5,3640.4,0.002]
[1754492470853,6.63747542,3640.5,3640.4,0.002]
[1754492471547,3.4583,3640.5,3640.4,0.002]
[1754492471714,4.504,3640.5,3640.4,0.002]
[1754492472148,4.9633,3640.5,3640.4,0.002]
[1754492472356,7.71017542,3640.5,3640.4,0.002]
[1754492472501,11.14247542,3640.5,3640.4,0.002]
[1754492472702,11.14247542,3640.5,3640.4,1e-08]
[1754492472703,11.69247542,3640.5,3640.4,1e-08]
[1754492472957,2.74717727,3640.1,3639.4,0.002]
[1754492473114,2.74763016,3639.5,3639.4,0.002]
[1754492473461,40.81163016,3639.5,3639.4,0.002]
[1754492473749,41.70223016,3639.5,3639.4,0.002]
[1754492474102,41.15223016,3639.5,3639.4,0.002]
[1754492477810,40.40760769,3639.0,3638.9,1e-08]
[1754492478010,11.84820769,3639.0,3638.9,1e-08]
[1754492478212,41.84820769,3639.0,3638.9,1e-08]
[1754492478803,41.41590769,3639.0,3638.9,1e-08]
[1754492479100,10.40760769,3639.0,3638.9,1e-08]
[1754492479621,4.6576,3639.0,3638.9,0.46180001]
[1754492479819,4.6576,3639.0,3638.9,1e-08]
[1754492479820,7.40560769,3639.0,3638.9,1e-08]
[1754492480033,4.6576,3639.0,3638.9,0.91860001]
[1754492480237,4.52,3639.0,3638.9,0.91860001]
[1754492480747,4.52,3639.0,3638.9,3.66668322]
[1754492480903,4.52,3639.0,3638.9,0.91860001]
[1754492481347,0.1376,3639.2,3638.9,3.66668322]
[1754492481525,4.517,3639.3,3639.0,3.66996103]
[1754492481842,4.516,3639.8,3639.1,0.922]
[1754492482141,4.6536,3639.8,3639.3,0.1376]
[1754492482449,4.6536,3639.8,3639.4,0.922]
[1754492482650,4.516,3639.8,3639.7,2.74747918]